Cogmind - Beta 15 @@@ ROGUE MODE // 2025.10.03 @ 22:20:11 Player: Pyrexia Result: Destroyed by S-10 Pest with Light Assault Rifle Performance ------------- Evolutions (0) 0 Regions Visited (1) 200 Robots Destroyed (19) 95 Value Destroyed (382) 382 Prototype IDs (0) 0 Alien Tech Used (0) 0 Bonus (0) 0 TOTAL SCORE: 677 Bonus ------- None Cogmind --------- Core Integrity 0/250 Matter 191/300 Energy 185/350 System Corruption 0% Temperature Cool (0) Movement Rolling (95) Ox1 Location -10/Materials Parts ------- > --- POWER (1) -------- (None) > --- PROPULSION (2) --- Wheel > --- UTILITY (2) ------ Medium Storage Unit High-capacity Battery > --- WEAPON (2) ------- Grenade Launcher Grenade Launcher > --- INVENTORY (10) --- Hover Unit Visual Processing Unit ECM Suite EM Pulse Gun Peak State ------------ > --- POWER ------------ Light Ion Engine > --- PROPULSION ------- Aluminum Leg Aluminum Leg > --- UTILITY ---------- Medium Storage Unit ECM Suite > --- WEAPON ----------- Medium Laser Light Assault Rifle > --- INVENTORY -------- Light Ion Engine Wheel Wheel Hover Unit Visual Processing Unit EM Pulse Gun EM Pulse Gun Grenade Launcher Grenade Launcher [Rating: 8] Favorites ----------- Power Light Ion Engine Engine Light Ion Engine Propulsion Aluminum Leg Leg Aluminum Leg Wheel Wheel Utility Medium Storage Unit Device ECM Suite Storage Medium Storage Unit Weapon Medium Laser Energy Gun Medium Laser Ballistic Gun Light Assault Rifle Launcher Grenade Launcher Build | -11 -10 ------- Run | Yrd Mat Slots Evolved . | . . Power . | . . Propulsion . | . . Utility . | . . Weapon . | . . Parts Attached 15 | 5 10 Power 2 | 1 1 Engine 2 | 1 1 Core . | . . Reactor . | . . Propulsion 4 | 2 2 Treads . | . . Leg 2 | 2 . Wheel 2 | . 2 Hover . | . . Flight . | . . Utility 3 | . 3 Device 1 | . 1 Storage 2 | . 2 Processor . | . . Hackware . | . . Protection . | . . Artifact . | . . Weapon 6 | 2 4 Energy Gun 2 | 1 1 Energy Cannon . | . . Ballistic Gun 1 | 1 . Ballistic Cannon . | . . Launcher 3 | . 3 Special Weapon . | . . Impact Weapon . | . . Slashing Weapon . | . . Piercing Weapon . | . . Special Melee Weapon . | . . Unidentified Prototypes . | . . Parts Lost 9 | . 9 Power 2 | . 2 Propulsion 3 | . 3 Utility . | . . Weapon 4 | . 4 Highest Loss Streak 8 | . 8 To Critical Strikes 1 | . 1 Average Backups 5 | 2 5 Power . | . . Propulsion 1 | 1 1 Utility . | . . Weapon 2 | . 2 Tool/Special . | . . Unused Backups 3 | . 3 Power . | . . Propulsion 1 | . 1 Utility 1 | . 1 Weapon 1 | . 1 Tool/Special . | . . Average Slot Usage (%) 75 | . 75 Engine 7 | . 7 Leg 12 | . 12 Wheel 8 | . 8 Device 12 | . 12 Storage 14 | . 14 Energy Gun 7 | . 7 Ballistic Gun 5 | . 5 Launcher 7 | . 7 Peak Build Rating 8 | 5 8 Average Rating 5 | 3 5 On Entrance 2 | . 5 Naked Turns . | . . Heaviest Build 20 | 6 20 Greatest Support 20 | 20 20 Greatest Overweight (x) 1 | . 1 Average Overweight (x) . | . . Largest Inventory Capacity 10 | 5 10 Average Capacity 9 | 5 9 Most Carried 9 | 5 9 Average Carried 5 | 2 5 Final Capacity 10 | 5 10 Final Carried 4 | 4 4 Class Distribution -------------------- 100% | Mutant Dominant Class ---------------- Mutant | -10/Materials Resources | -11 -10 ----------- Run | Yrd Mat Matter Collected 337 | 250 87 Remotely . | . . Salvage Created 432 | 67 365 Parts 30 | 5 25 Haulers Intercepted . | . . Recyclers Shooed 2 | . 2 Parts Field Recycled . | . . Retrieved Matter . | . . Parts Self-Destructed . | . . Prevented . | . . Kills | -11 -10 ------- Run | Yrd Mat Combat Hostiles Destroyed 10 | 1 9 Guns 3 | 1 2 AOE 7 | . 7 Classes Destroyed 7 | 2 5 Worker 1 | . 1 Builder 3 | . 3 Tunneler 1 | 1 . Recycler 2 | . 2 Watcher 2 | . 2 Swarmer 2 | . 2 Grunt 8 | 1 7 Best Kill Streak 14 | 2 14 Combat Bots Only 7 | 1 7 Max Kills in Single Turn 2 | 1 2 Gunslinging . | . . Exploded 2 | . 2 Melee . | . . Uniques/NPCs Destroyed . | . . Combat | -11 -10 -------- Run | Yrd Mat Hostile Shots Fired 96 | 6 90 Missed 20 | 3 17 Hits 76 | 3 73 Projectile 76 | 3 73 Critical Strikes 2 | . 2 Damage Taken 951 | 31 920 Core 252 | . 252 Absorbed by Shields . | . . Core Remaining (%) 100 | 100 . Volleys Fired 40 | 3 37 Largest 2 | 2 2 Hottest 90 | 70 90 Shots Fired 64 | 6 58 Gun 53 | 6 47 Cannon . | . . Launcher 11 | . 11 Special . | . . Kinetic 20 | 3 17 Thermal 28 | 3 25 Explosive 11 | . 11 Electromagnetic 5 | . 5 Robot Hit Streak 16 | 3 16 Robot Miss Streak 5 | 2 5 Penetration Max . | . . Secondary Targets . | . . Shots Hit Robots 38 | 4 34 Core Hits 30 | 3 27 Critical Kills . | . . Critical Parts Destroyed . | . . Critical Strikes 2 | . 2 Burn 1 | . 1 Corrupt 1 | . 1 Melee Attacks . | . . Impact . | . . Slashing . | . . Piercing . | . . Sneak Attacks . | . . Combat Hostiles . | . . Follow-up Attacks . | . . Damage Inflicted 1293 | 60 1233 Guns 322 | 60 262 Cannons . | . . Explosions 971 | . 971 Melee . | . . Ramming . | . . Kinetic 71 | 23 48 Thermal 211 | 37 174 Explosive 971 | . 971 Electromagnetic 40 | . 40 Impact . | . . Slashing . | . . Piercing . | . . Highest Corruption . | . . Average Corruption . | . . Corruption Purged . | . . Corruption Blocked . | . . Overload Shots . | . . Overflow Damage 55 | . 55 Projectiles . | . . Explosions 55 | . 55 Melee . | . . Knockbacks . | . . Impact . | . . Kinetic . | . . Secondary . | . . Self-Inflicted Damage 109 | . 109 Shots 5 | . 5 Rammed . | . . Targets Rammed . | . . Kicked . | . . Crushed . | . . Highest Temperature 236 | 82 236 Average Temperature 96 | 46 101 Received Heat Transfer 423 | 18 405 Siege Activations . | . . Martial Activations . | . . Shielding Activations . | . . Robots Disrupted . | . . Combat Hostiles . | . . Robots Corrupted . | . . Combat Hostiles . | . . Parts Fried . | . . Impact Corruptions . | . . Robots Melted . | . . Combat Hostiles . | . . Parts Melted 1 | . 1 Heat Transferred 703 | 111 592 Parts Sabotaged . | . . Parts Stolen . | . . Parts Stripped . | . . Power Chain Reactions . | . . Alert | -11 -10 ------- Run | Yrd Mat Maximum Alert Level 1 | . 1 Low Security (%) 94 | 100 93 Level 1 5 | . 6 Level 2 . | . . Level 3 . | . . Level 4 . | . . Level 5 . | . . High Security . | . . Max Security . | . . Peak Influence 217 | 25 217 Initial 9 | . 9 Average 69 | 1 83 Influence Increases 341 | 25 316 Destroy 0b10 Robot/C 200 | 20 180 Destroy 0b10 Robot/NC 45 | 5 40 Destroy Leader 34 | . 34 Successful Hack 2 | . 2 Disable Machine 15 | . 15 Destroy Structure 45 | . 45 Influence Decreases 232 | 10 222 Entered New Map 6 | . 6 Time Decay 176 | 10 166 Lost Part 50 | . 50 Squads Dispatched 1 | . 1 Investigation 1 | . 1 Extermination . | . . Reinforcement . | . . Assault . | . . Garrison . | . . Intercept . | . . Searches Triggered . | . . Construction Impeded . | . . Haulers Reinforced . | . . Active Scanning Responses . | . . Cargo Convoy Interrupts . | . . Stealth | -11 -10 --------- Run | Yrd Mat Distress Signals 2 | . 2 Communications Jammed . | . . Distress Signals . | . . Times Spotted 23 | 1 22 Peak Tracking Total 7 | 1 7 Tactical Retreats 4 | . 4 Traps | -11 -10 ------- Run | Yrd Mat Traps Triggered 1 | . 1 Indirectly . | . . Trap Hack Attempts . | . . Triggered . | . . Disarmed . | . . Reprogrammed . | . . Reused . | . . Traps Extracted . | . . Installed . | . . Triggered . | . . Machines | -11 -10 ---------- Run | Yrd Mat Machines Disabled 1 | . 1 Max in Single Turn 1 | . 1 Machines Repaired . | . . Machines Dismantled . | . . Machines Sabotaged . | . . Overloaded Fab Kills . | . . Hacking | -11 -10 --------- Run | Yrd Mat Machines Accessed 2 | . 2 Terminals 2 | . 2 Fabricators . | . . Repair Stations . | . . Recycling Units . | . . Scanalyzers . | . . Garrison Access . | . . Total Hacks 4 | . 4 Successful 2 | . 2 Failed 2 | . 2 Catastrophic . | . . Database Lockouts . | . . Manual . | . . Terminals 4 | . 4 Fabricators . | . . Repair Stations . | . . Recycling Units . | . . Scanalyzers . | . . Garrison Access . | . . Terminal Hacks 2 | . 2 Record 2 | . 2 Fabricator Hacks . | . . Repair Station Hacks . | . . Recycling Unit Hacks . | . . Scanalyzer . | . . Garrison Access Hacks . | . . Unauthorized Hacks . | . . Terminals . | . . Fabricators . | . . Repair Stations . | . . Recycling Units . | . . Scanalyzers . | . . Garrison Access . | . . Data Cores Recovered . | . . Used . | . . Hacking Detections 2 | . 2 Full Trace Events . | . . Feedback Events . | . . Feedback Blocked . | . . Robot Schematics Acquired . | . . Robots Built . | . . Authchips . | . . Time . | . . Total Robot Build Rating . | . . Part Schematics Acquired . | . . Parts Built . | . . Authchips . | . . Time . | . . Total Part Build Rating . | . . Parts Repaired . | . . Time . | . . Parts Recycled . | . . Recycled Matter . | . . Retrieved Matter . | . . Retrieved Components . | . . Parts Scanalyzed . | . . Part Schematics Acquired . | . . Parts Damaged . | . . Bothacking | -11 -10 ------------ Run | Yrd Mat Used RIF Installer . | . . Robots Hacked . | . . Non-combat . | . . Combat . | . . Robot Hacks Applied . | . . Relay Couplers Released . | . . Fabnet Peak Effective % . | . . Robots Rewired . | . . Allies Hacked . | . . Hacks Repelled . | . . Allies | -11 -10 -------- Run | Yrd Mat Total Allies . | . . Largest Group . | . . Highest-Rated Group . | . . Highest-Rated Ally . | . . Total Orders . | . . Ally Attacks . | . . Total Damage . | . . Kills . | . . Allies Corrupted . | . . Allies Melted . | . . Intel | -11 -10 ------- Run | Yrd Mat Active Infowar (turns) 411 | . 411 ECM 411 | . 411 Robot Analysis Total . | . . Derelict Logs Recovered . | . . Drone Launches . | . . Drone Recoveries . | . . Exploration | -11 -10 ------------- Run | Yrd Mat Turns Passed 612 | 103 509 Spaces Moved 265 | 77 188 Core 16 | 16 . Treads . | . . Legs 164 | 61 103 Wheels 85 | . 85 Hover . | . . Flight . | . . Fastest Speed 50 | 50 80 Average Speed 107 | 105 108 Slowest Speed 190 | 120 190 Overloaded Moves . | . . Propulsion Burnouts . | . . Robots Hopped . | . . Potential Cave-ins . | . . Cave-ins Triggered . | . . Exploration Rate (%) 18 | 6 31 Regions Visited 1 Branch Regions . Pre-discovered Areas . | . . Known Exits Taken . | . . Unknown Exits Taken 1 | 1 . Scrap Searched . | . . Spaces Dug . | . . Terrain Destroyed 59 | . 59 Melee . | . . Projectile . | . . AOE 59 | . 59 Terrain Rammed . | . . Walls Destroyed . | . . Machines Disabled . | . . Actions | -11 -10 --------- Run | Yrd Mat Total 532 | 93 439 Wait 194 | . 194 Move 264 | 76 188 Hop . | . . Pick Up 18 | 9 9 Fast Attach . | . . Attach 15 | 5 10 Detach 1 | . 1 Swap . | . . Drop . | . . Fire 40 | 3 37 Melee . | . . Ram . | . . Kick . | . . Crush . | . . Escape Stasis . | . . Rewire . | . . Trap . | . . Miscellaneous . | . . Route ------- -11/Scrapyard -10/Materials History --------- Turn | Location | Event 2 | -11/Scrapyard | Met Revision 17 75 | -11/Scrapyard | Discovered new exit (range 8) 104 | -11/Scrapyard | Entered Materials 300 | -10/Materials | Build established: Mutant 367 | -10/Materials | Core integrity fell below 50% 371 | -10/Materials | Core integrity fell below 20% 392 | -10/Materials | Lost 8 parts (2p3n3w) 397 | -10/Materials | Destroyed 7 combat bots 613 | -10/Materials | Destroyed by S-10 Pest with Light Assault Rifle Last Messages --------------- U-05 Engineer lays Concrete. R-06 Scavenger collects Lgt. Assault Rifle. K-01 Serf collects debris. U-05 Engineer builds a Wall. Acquired 9 matter. Acquired 17 matter. U-05 Engineer lays Concrete. R-06 Scavenger collects Aluminum Leg. U-05 Engineer lays Concrete. U-05 Engineer builds a Wall. U-05 Engineer lays Concrete. R-06 Scavenger collects Tractor Beam. U-05 Engineer lays Concrete. U-05 Engineer builds a Wall. Acquired Hcp. Battery. Acquired Grenade Launcher. T-07 Excavator is excavating. W-16 Scout sends out distress signal. Critical hit (Destroy). Grenade Launcher destroyed. Map ----- +----------------------------------------------------+ | ?????????????????????????????????? | | ?????????????????????????????????? | | ?????????????????????????????????? | | ?????????????????????????????????? | | ?????????????????????????????????? | | ?????????????????????????????????? | | ?????????????????????????????????? | | ??????????????????????????????#??? | | ?????????????????????????????? ??? | | ?????????????????????????????? ??? | | ?????????????????????????????? ??? | | ?????????????????????????????? ??? | | ???????????#?????????????????? ??? | | ???????????# ????????????????? ### | | ?????######## ?????###+####### # | | ?????# # ##### ## | | ?????# + ### | | ?????#== # T | | ?????#== # ### = | | ?????#= ######### ## = | | ?????# ?######### ### # # | | ?????#+##+#??# ! # #?# # # | | ?????# #??# !! + #?### # | | ?????# #??# !! # #??## # | | ?????# #??##+###### #??# # | | ?????# @##### #######+##### # | | ?????# + ## # | | ?????# ##+####### """## + | | ?????# # ## R"## # | | ?????# # ## """## # | | ?????# # ## ## # | | ?????# # ## """ ## # | | ?????# ########## """ ## # | | ?????# #????????# """ ## # | | ?????# #????????# ## # | | ????? +????????########### # | | ?????#s####??????????????????# # | | ?????#k??????????????????????# | | ?????# ??????????????????????# | | ?????# ??????????????????????# | | ?????# ??????????????????????# | | ?????? ??????????????????????# | | ?????? ??????????????????????# | | ?????????????????????????????# " | | ?????????????????????????????# " | | ?????????????????????????????# " | | ?????????????????????????????# | | ?????????????????????????????# | | ?????????????????????????????# | | ?????????????????????????????# | +----------------------------------------------------+ Best States ------------- Heat Dissipation 25 Energy Generation 10 Energy Capacity 350 Matter Stores 300 Matter Capacity 300 Sight Range 16 Terrain Scan Density 10 ECM Strength 1 Evasion (%) 55 Item Schematics ----------------- None Robot Schematics ------------------ None Fabricated ------------ Nothing Repaired ---------- Nothing Alien Tech Used ----------------- None Achievements -------------- Let's See Who's Tougher Challenges ------------ None Game ------ Seed TeleporterMissileSuite Manual? 0 Play Time 00:09:30 Cumulative 2.8 hours Start 2025.10.03 @ 22:11:26 End 2025.10.03 @ 22:20:11 Sessions 1 Manual Loads 0 Difficulty Rogue Special Mode None Game No. 3 Rogue 3 Adventurer 0 Explorer 0 Win Type - Total 0 Types 0/0/0/0/0/0/0/0/0/0 Lore% 1 Gallery% 6 Achievement% 8 Wizard Run 0 Options --------- Layout 1 ASCII 0 Keyboard 0 Movement Numpad Keybinds 0 Fullscreen 1 Font 24/Smallcaps Map View 50x35 Zoom Use 0% Tactical HUD 0 Map Filters NONE Filters NONE Steam 1 RUN: 7470c9da-e5de-413e-91c5-43115161dbd4